[Event "January 9 Late 2024"]
[Site "https://www.chess.com"]
[Date "2024.01.09"]
[Round "1"]
[White "Rodriguez, Santiago"]
[Black "Martinez Alcantara, Jose Eduardo"]
[Result "0-1"]
[Board "27"]
[TimeControl "180+1"]
[WhiteFideId "3000591"]
[BlackFideId "3805662"]
[WhiteElo "2526"]
[BlackElo "3007"]
[WhiteTeam "URU"]
[BlackTeam "PER"]
[WhiteClock "0:00:00"]
[BlackClock "0:00:49"]

1. d4 {[%clk 0:03:00]}  Nf6 {[%clk 0:02:59]} 2. Bg5 {[%clk 0:03:00]}  d5 {[%clk 0:02:58]} 3. Bxf6 {[%clk 0:03:00]}  exf6 {[%clk 0:02:58]} 4. e3 {[%clk 0:03:00]}  c6 {[%clk 0:02:59]} 5. Bd3 {[%clk 0:03:00]}  Bd6 {[%clk 0:02:59]} 6. Nd2 {[%clk 0:02:59]}  O-O {[%clk 0:02:57]} 7. Qf3 {[%clk 0:02:59]}  Na6 {[%clk 0:02:54]} 8. c3 {[%clk 0:02:57]}  Nc7 {[%clk 0:02:54]} 9. g4 {[%clk 0:02:56]}  Re8 {[%clk 0:02:53]} 10. Ne2 {[%clk 0:02:56]}  b6 {[%clk 0:02:51]} 11. h4 {[%clk 0:02:55]}  Ba6 {[%clk 0:02:51]} 12. Bxa6 {[%clk 0:02:49]}  Nxa6 {[%clk 0:02:52]} 13. g5 {[%clk 0:02:50]}  Re6 {[%clk 0:02:42]} 14. O-O-O {[%clk 0:02:48]}  Nc7 {[%clk 0:02:41]} 15. Rdg1 {[%clk 0:02:45]}  Kh8 {[%clk 0:02:42]} 16. Nf4 {[%clk 0:02:37]}  Bxf4 {[%clk 0:02:32]} 17. Qxf4 {[%clk 0:02:38]}  Ne8 {[%clk 0:02:18]} 18. Nf3 {[%clk 0:02:35]}  Nd6 {[%clk 0:02:15]} 19. Rh3 {[%clk 0:02:24]}  Qe7 {[%clk 0:02:11]} 20. h5 {[%clk 0:02:06]}  Rg8 {[%clk 0:01:42]} 21. g6 {[%clk 0:01:58]}  h6 {[%clk 0:01:42]} 22. Nh4 {[%clk 0:01:50]}  Qd7 {[%clk 0:01:29]} 23. gxf7 {[%clk 0:01:37]}  Qxf7 {[%clk 0:01:30]} 24. Rhg3 {[%clk 0:01:29]}  Re4 {[%clk 0:01:15]} 25. Ng6+ {[%clk 0:01:15]}  Qxg6 {[%clk 0:01:15]} 26. Rxg6 {[%clk 0:01:07]}  Rxf4 {[%clk 0:01:15]} 27. exf4 {[%clk 0:01:07]}  Nf5 {[%clk 0:01:14]} 28. Kd2 {[%clk 0:01:06]}  Rc8 {[%clk 0:01:11]} 29. Re1 {[%clk 0:01:03]}  Kg8 {[%clk 0:01:11]} 30. f3 {[%clk 0:01:02]}  Kf7 {[%clk 0:01:11]} 31. Kd3 {[%clk 0:00:58]}  Nh4 {[%clk 0:01:11]} 32. Rg3 {[%clk 0:00:52]}  Nf5 {[%clk 0:01:12]} 33. Rg2 {[%clk 0:00:41]}  a5 {[%clk 0:01:12]} 34. Rge2 {[%clk 0:00:39]}  a4 {[%clk 0:01:12]} 35. a3 {[%clk 0:00:33]}  Kf8 {[%clk 0:01:11]} 36. Rg2 {[%clk 0:00:32]}  Kf7 {[%clk 0:01:09]} 37. Rge2 {[%clk 0:00:29]}  Kg8 {[%clk 0:01:10]} 38. Rg2 {[%clk 0:00:25]}  Kf8 {[%clk 0:01:10]} 39. Rge2 {[%clk 0:00:25]}  Ng3 {[%clk 0:01:10]} 40. Rh2 {[%clk 0:00:18]}  b5 {[%clk 0:01:10]} 41. Rg1 {[%clk 0:00:18]}  Nf5 {[%clk 0:01:10]} 42. Re1 {[%clk 0:00:17]}  Nd6 {[%clk 0:01:09]} 43. Rg2 {[%clk 0:00:15]}  Rc7 {[%clk 0:01:09]} 44. Re6 {[%clk 0:00:15]}  Rd7 {[%clk 0:01:09]} 45. Rge2 {[%clk 0:00:15]}  Kf7 {[%clk 0:01:09]} 46. R6e3 {[%clk 0:00:12]}  Nc4 {[%clk 0:01:08]} 47. Re6 {[%clk 0:00:11]}  Rc7 {[%clk 0:01:06]} 48. f5 {[%clk 0:00:06]}  Nb6 {[%clk 0:01:07]} 49. Rg2 {[%clk 0:00:04]}  Nc8 {[%clk 0:01:07]} 50. Rge2 {[%clk 0:00:02]}  Nb6 {[%clk 0:01:07]} 51. Re8 {[%clk 0:00:01]}  Nc4 {[%clk 0:01:07]} 52. Rb8 {[%clk 0:00:01]}  Nd6 {[%clk 0:01:07]} 53. Rd8 {[%clk 0:00:01]}  Nxf5 {[%clk 0:01:07]} 54. Ree8 {[%clk 0:00:01]}  Ne7 {[%clk 0:01:02]} 55. Rf8+ {[%clk 0:00:01]}  Ke6 {[%clk 0:01:03]} 56. Rde8 {[%clk 0:00:02]}  Rd7 {[%clk 0:00:59]} 57. Rg8 {[%clk 0:00:02]}  Kf7 {[%clk 0:00:56]} 58. Rgf8+ {[%clk 0:00:02]}  Ke6 {[%clk 0:00:56]} 59. Rg8 {[%clk 0:00:03]}  Rc7 {[%clk 0:00:48]} 60. Rxg7 {[%clk 0:00:03]}  Kd6 {[%clk 0:00:49]} 61. Rgxe7 {[%clk 0:00:03]}  Rxe7 {[%clk 0:00:49]} 62. Rxe7 {[%clk 0:00:04]}  Kxe7 {[%clk 0:00:50]} 63. Ke3 {[%clk 0:00:04]}  f5 {[%clk 0:00:48]} 64. Kf4 {[%clk 0:00:05]}  Kf6 {[%clk 0:00:48]} 65. Kg3 {[%clk 0:00:00]}  Kg5 {[%clk 0:00:49]} 0-1

[Event "January 9 Late 2024"]
[Site "https://www.chess.com"]
[Date "2024.01.09"]
[Round "1"]
[White "Hakobyan, Aram"]
[Black "Mosquera, Miguel"]
[Result "1-0"]
[Board "30"]
[TimeControl "180+1"]
[WhiteFideId "13306677"]
[BlackFideId "4401131"]
[WhiteElo "3001"]
[BlackElo "2524"]
[WhiteTeam "ARM"]
[BlackTeam "COL"]
[WhiteClock "0:01:11"]
[BlackClock "0:00:00"]

1. e4 {[%clk 0:03:00]}  c5 {[%clk 0:02:59]} 2. Nf3 {[%clk 0:03:00]}  d6 {[%clk 0:02:53]} 3. Bb5+ {[%clk 0:02:59]}  Bd7 {[%clk 0:02:52]} 4. Bxd7+ {[%clk 0:02:59]}  Nxd7 {[%clk 0:02:53]} 5. O-O {[%clk 0:02:58]}  Ngf6 {[%clk 0:02:46]} 6. Re1 {[%clk 0:02:57]}  e6 {[%clk 0:02:44]} 7. c3 {[%clk 0:02:55]}  Be7 {[%clk 0:02:40]} 8. d4 {[%clk 0:02:54]}  O-O {[%clk 0:02:39]} 9. Nbd2 {[%clk 0:02:41]}  Rc8 {[%clk 0:02:35]} 10. e5 {[%clk 0:02:42]}  dxe5 {[%clk 0:02:35]} 11. dxe5 {[%clk 0:02:42]}  Nd5 {[%clk 0:02:31]} 12. Ne4 {[%clk 0:02:38]}  N7b6 {[%clk 0:02:12]} 13. Qc2 {[%clk 0:02:33]}  h6 {[%clk 0:01:39]} 14. Bd2 {[%clk 0:02:30]}  Qc7 {[%clk 0:01:37]} 15. Rad1 {[%clk 0:02:24]}  Nc4 {[%clk 0:01:37]} 16. Bc1 {[%clk 0:02:19]}  b5 {[%clk 0:01:21]} 17. b3 {[%clk 0:02:14]}  Ncb6 {[%clk 0:01:20]} 18. c4 {[%clk 0:02:04]}  Nb4 {[%clk 0:01:12]} 19. Qe2 {[%clk 0:02:03]}  bxc4 {[%clk 0:01:11]} 20. bxc4 {[%clk 0:02:04]}  Rfd8 {[%clk 0:01:09]} 21. Nd6 {[%clk 0:02:02]}  Bxd6 {[%clk 0:00:54]} 22. exd6 {[%clk 0:02:03]}  Rxd6 {[%clk 0:00:54]} 23. Bf4 {[%clk 0:01:59]}  Rxd1 {[%clk 0:00:55]} 24. Bxc7 {[%clk 0:01:59]}  Rxe1+ {[%clk 0:00:55]} 25. Qxe1 {[%clk 0:01:58]}  Rxc7 {[%clk 0:00:56]} 26. Qe5 {[%clk 0:01:52]}  Rd7 {[%clk 0:00:49]} 27. h4 {[%clk 0:01:49]}  Nd3 {[%clk 0:00:45]} 28. Qe4 {[%clk 0:01:39]}  Nc1 {[%clk 0:00:23]} 29. Ne5 {[%clk 0:01:37]}  Rd4 {[%clk 0:00:20]} 30. Qb7 {[%clk 0:01:35]}  Kh7 {[%clk 0:00:21]} 31. Qxf7 {[%clk 0:01:25]}  Nxc4 {[%clk 0:00:19]} 32. Qg6+ {[%clk 0:01:22]}  Kg8 {[%clk 0:00:19]} 33. Qxe6+ {[%clk 0:01:22]}  Kh8 {[%clk 0:00:19]} 34. Nxc4 {[%clk 0:01:17]}  Nxa2 {[%clk 0:00:19]} 35. g3 {[%clk 0:01:14]}  Nc3 {[%clk 0:00:12]} 36. Ne5 {[%clk 0:01:14]}  Rd1+ {[%clk 0:00:08]} 37. Kg2 {[%clk 0:01:14]}  Kh7 {[%clk 0:00:03]} 38. Qg6+ {[%clk 0:01:12]}  Kg8 {[%clk 0:00:03]} 39. Qf7+ {[%clk 0:01:11]}  Kh7 {[%clk 0:00:00]} 40. Nd7 {[%clk 0:01:11]} 1-0

[Event "January 9 Late 2024"]
[Site "https://www.chess.com"]
[Date "2024.01.09"]
[Round "1"]
[White "Salman, Ilhan Serhat"]
[Black "Antipov, Mikhail Al."]
[Result "0-1"]
[Board "31"]
[TimeControl "180+1"]
[WhiteFideId "6361579"]
[BlackFideId "4107012"]
[WhiteElo "2523"]
[BlackElo "2992"]
[WhiteTeam "TUR"]
[BlackTeam "FID"]
[WhiteClock "0:00:05"]
[BlackClock "0:01:01"]

1. d4 {[%clk 0:02:58]}  Nf6 {[%clk 0:02:58]} 2. Bg5 {[%clk 0:02:58]}  c6 {[%clk 0:02:52]} 3. Bxf6 {[%clk 0:02:56]}  exf6 {[%clk 0:02:53]} 4. Nf3 {[%clk 0:02:56]}  d5 {[%clk 0:02:53]} 5. e3 {[%clk 0:02:56]}  Qb6 {[%clk 0:02:49]} 6. Qc1 {[%clk 0:02:55]}  Bf5 {[%clk 0:02:48]} 7. c4 {[%clk 0:02:53]}  Bxb1 {[%clk 0:02:40]} 8. Rxb1 {[%clk 0:02:46]}  Bb4+ {[%clk 0:02:35]} 9. Nd2 {[%clk 0:02:46]}  dxc4 {[%clk 0:02:34]} 10. Bxc4 {[%clk 0:02:43]}  O-O {[%clk 0:02:34]} 11. O-O {[%clk 0:02:41]}  Nd7 {[%clk 0:02:31]} 12. a3 {[%clk 0:02:40]}  Be7 {[%clk 0:02:31]} 13. b4 {[%clk 0:02:34]}  Rac8 {[%clk 0:02:28]} 14. Nb3 {[%clk 0:02:22]}  f5 {[%clk 0:02:24]} 15. Rd1 {[%clk 0:02:20]}  Nf6 {[%clk 0:02:24]} 16. Bd3 {[%clk 0:02:17]}  g6 {[%clk 0:02:24]} 17. Nc5 {[%clk 0:02:16]}  a6 {[%clk 0:02:15]} 18. Qc2 {[%clk 0:01:56]}  Rfd8 {[%clk 0:02:12]} 19. h3 {[%clk 0:01:44]}  Kg7 {[%clk 0:02:10]} 20. Qb3 {[%clk 0:01:42]}  h5 {[%clk 0:02:07]} 21. Bc4 {[%clk 0:01:43]}  Rf8 {[%clk 0:02:05]} 22. Re1 {[%clk 0:01:36]}  Rcd8 {[%clk 0:01:58]} 23. Rbd1 {[%clk 0:01:35]}  h4 {[%clk 0:01:47]} 24. Re2 {[%clk 0:01:29]}  Bd6 {[%clk 0:01:38]} 25. Ree1 {[%clk 0:01:21]}  Bb8 {[%clk 0:01:36]} 26. e4 {[%clk 0:01:11]}  fxe4 {[%clk 0:01:34]} 27. Nxe4 {[%clk 0:01:12]}  Qc7 {[%clk 0:01:29]} 28. Nxf6 {[%clk 0:00:50]}  Qh2+ {[%clk 0:01:28]} 29. Kf1 {[%clk 0:00:51]}  Kxf6 {[%clk 0:01:29]} 30. Qf3+ {[%clk 0:00:48]}  Kg7 {[%clk 0:01:29]} 31. Re7 {[%clk 0:00:45]}  Bf4 {[%clk 0:01:22]} 32. Re4 {[%clk 0:00:30]}  Bg5 {[%clk 0:01:12]} 33. Ke2 {[%clk 0:00:26]}  Qd6 {[%clk 0:01:01]} 34. Kd3 {[%clk 0:00:20]}  f5 {[%clk 0:01:01]} 35. Re6 {[%clk 0:00:07]}  Qxd4+ {[%clk 0:01:01]} 36. Kc2 {[%clk 0:00:08]}  Qxc4+ {[%clk 0:01:00]} 37. Qc3+ {[%clk 0:00:07]}  Qxc3+ {[%clk 0:01:00]} 38. Kxc3 {[%clk 0:00:05]}  Rxd1 {[%clk 0:01:01]} 0-1

[Event "January 9 Late 2024"]
[Site "https://www.chess.com"]
[Date "2024.01.09"]
[Round "1"]
[White "Yoo, Christopher Woojin"]
[Black "Suder, Jakub"]
[Result "1-0"]
[Board "34"]
[TimeControl "180+1"]
[WhiteFideId "30909694"]
[BlackFideId "1195310"]
[WhiteElo "2978"]
[BlackElo "2521"]
[WhiteTeam "USA"]
[BlackTeam "POL"]
[WhiteClock "0:00:04"]
[BlackClock "0:00:18"]

1. d4 {[%clk 0:03:00]}  d5 {[%clk 0:02:59]} 2. Nf3 {[%clk 0:02:59]}  f6 {[%clk 0:02:59]} 3. c4 {[%clk 0:02:56]}  c6 {[%clk 0:02:58]} 4. Qc2 {[%clk 0:02:37]}  e6 {[%clk 0:02:46]} 5. e4 {[%clk 0:02:35]}  Ne7 {[%clk 0:02:40]} 6. Nc3 {[%clk 0:02:33]}  dxe4 {[%clk 0:02:34]} 7. Qxe4 {[%clk 0:02:34]}  Nf5 {[%clk 0:02:26]} 8. Bd3 {[%clk 0:02:33]}  Na6 {[%clk 0:02:22]} 9. O-O {[%clk 0:02:32]}  Be7 {[%clk 0:02:21]} 10. Re1 {[%clk 0:02:25]}  Kf7 {[%clk 0:02:19]} 11. a3 {[%clk 0:02:07]}  Nc7 {[%clk 0:02:14]} 12. Bf4 {[%clk 0:02:06]}  g5 {[%clk 0:02:12]} 13. Bxc7 {[%clk 0:01:34]}  Qxc7 {[%clk 0:02:12]} 14. c5 {[%clk 0:01:16]}  Bd7 {[%clk 0:02:02]} 15. Bc4 {[%clk 0:01:09]}  Ng7 {[%clk 0:02:00]} 16. h4 {[%clk 0:00:44]}  h6 {[%clk 0:01:51]} 17. Bd3 {[%clk 0:00:35]}  Kf8 {[%clk 0:01:38]} 18. Re2 {[%clk 0:00:33]}  Rd8 {[%clk 0:01:26]} 19. Bc4 {[%clk 0:00:30]}  b6 {[%clk 0:01:21]} 20. b4 {[%clk 0:00:29]}  Bc8 {[%clk 0:01:13]} 21. Rae1 {[%clk 0:00:21]}  a5 {[%clk 0:01:10]} 22. cxb6 {[%clk 0:00:12]}  Qxb6 {[%clk 0:01:11]} 23. Na4 {[%clk 0:00:12]}  Qc7 {[%clk 0:01:09]} 24. Nc5 {[%clk 0:00:13]}  Bxc5 {[%clk 0:01:06]} 25. bxc5 {[%clk 0:00:13]}  Kf7 {[%clk 0:00:56]} 26. Rb2 {[%clk 0:00:13]}  Rhe8 {[%clk 0:00:30]} 27. Reb1 {[%clk 0:00:08]}  Rd5 {[%clk 0:00:19]} 28. Qh7 {[%clk 0:00:04]}  g4 {[%clk 0:00:17]} 29. Bxd5 {[%clk 0:00:03]}  exd5 {[%clk 0:00:16]} 30. Nh2 {[%clk 0:00:03]}  Qf4 {[%clk 0:00:17]} 31. g3 {[%clk 0:00:02]}  Qe4 {[%clk 0:00:15]} 32. Rb7+ {[%clk 0:00:02]}  Re7 {[%clk 0:00:14]} 33. Rxe7+ {[%clk 0:00:02]}  Qxe7 {[%clk 0:00:15]} 34. Qxh6 {[%clk 0:00:01]}  Bf5 {[%clk 0:00:16]} 35. Rf1 {[%clk 0:00:02]}  Qe6 {[%clk 0:00:17]} 36. Qf4 {[%clk 0:00:02]}  Qe7 {[%clk 0:00:18]} 37. Qe3 {[%clk 0:00:02]}  Qe6 {[%clk 0:00:19]} 38. Qxe6+ {[%clk 0:00:02]}  Nxe6 {[%clk 0:00:19]} 39. Rd1 {[%clk 0:00:03]}  Nxd4 {[%clk 0:00:19]} 40. Rxd4 {[%clk 0:00:03]}  Be4 {[%clk 0:00:18]} 41. Nxg4 {[%clk 0:00:04]} 1-0

[Event "January 9 Late 2024"]
[Site "https://www.chess.com"]
[Date "2024.01.09"]
[Round "1"]
[White "Tissir, Mohamed"]
[Black "Salem, A.R. Saleh"]
[Result "0-1"]
[Board "37"]
[TimeControl "180+1"]
[WhiteFideId "9000240"]
[BlackFideId "9301348"]
[WhiteElo "2518"]
[BlackElo "2972"]
[WhiteTeam "MAR"]
[BlackTeam "UAE"]
[WhiteClock "0:00:07"]
[BlackClock "0:01:09"]

1. e4 {[%clk 0:02:59]}  c5 {[%clk 0:03:00]} 2. Nc3 {[%clk 0:02:59]}  Nc6 {[%clk 0:02:59]} 3. Bb5 {[%clk 0:02:59]}  Nd4 {[%clk 0:03:00]} 4. Bc4 {[%clk 0:02:59]}  e6 {[%clk 0:03:00]} 5. Nge2 {[%clk 0:02:59]}  Nc6 {[%clk 0:03:00]} 6. O-O {[%clk 0:02:56]}  d6 {[%clk 0:03:01]} 7. d4 {[%clk 0:02:56]}  cxd4 {[%clk 0:03:01]} 8. Nxd4 {[%clk 0:02:56]}  Nf6 {[%clk 0:03:00]} 9. Bb3 {[%clk 0:02:52]}  Be7 {[%clk 0:03:00]} 10. Be3 {[%clk 0:02:47]}  O-O {[%clk 0:02:59]} 11. f4 {[%clk 0:02:47]}  Na5 {[%clk 0:02:50]} 12. Qf3 {[%clk 0:02:41]}  a6 {[%clk 0:02:39]} 13. Rad1 {[%clk 0:02:40]}  Qc7 {[%clk 0:02:37]} 14. g4 {[%clk 0:02:29]}  Nc4 {[%clk 0:02:33]} 15. Bxc4 {[%clk 0:02:20]}  Qxc4 {[%clk 0:02:33]} 16. g5 {[%clk 0:02:21]}  Nd7 {[%clk 0:02:33]} 17. f5 {[%clk 0:02:18]}  Ne5 {[%clk 0:02:32]} 18. Qg2 {[%clk 0:02:17]}  Bd8 {[%clk 0:02:19]} 19. Nce2 {[%clk 0:02:00]}  Bb6 {[%clk 0:02:13]} 20. b3 {[%clk 0:01:36]}  Qc7 {[%clk 0:02:11]} 21. c3 {[%clk 0:01:34]}  Bd7 {[%clk 0:02:00]} 22. Rf4 {[%clk 0:01:15]}  exf5 {[%clk 0:01:57]} 23. exf5 {[%clk 0:01:15]}  Rfe8 {[%clk 0:01:58]} 24. Qg3 {[%clk 0:01:14]}  Bc6 {[%clk 0:01:48]} 25. Rf2 {[%clk 0:01:06]}  Be4 {[%clk 0:01:42]} 26. Nf4 {[%clk 0:00:49]}  Qxc3 {[%clk 0:01:26]} 27. Nh5 {[%clk 0:00:47]}  Nf3+ {[%clk 0:01:14]} 28. Rxf3 {[%clk 0:00:42]}  Bxf3 {[%clk 0:01:14]} 29. Nf6+ {[%clk 0:00:07]}  Kh8 {[%clk 0:01:09]} 0-1

[Event "January 9 Late 2024"]
[Site "https://www.chess.com"]
[Date "2024.01.09"]
[Round "1"]
[White "Espinoza Palomino, Willyam"]
[Black "Svane, Frederik"]
[Result "0-1"]
[Board "39"]
[TimeControl "180+1"]
[WhiteFideId "3804852"]
[BlackFideId "12923044"]
[WhiteElo "2517"]
[BlackElo "2965"]
[WhiteTeam "PER"]
[BlackTeam "GER"]
[WhiteClock "0:00:02"]
[BlackClock "0:00:10"]

1. e4 {[%clk 0:02:59]}  e5 {[%clk 0:02:57]} 2. Nf3 {[%clk 0:03:00]}  Nc6 {[%clk 0:02:57]} 3. Bb5 {[%clk 0:03:00]}  a6 {[%clk 0:02:56]} 4. Ba4 {[%clk 0:03:01]}  d6 {[%clk 0:02:55]} 5. c3 {[%clk 0:02:58]}  Bd7 {[%clk 0:02:50]} 6. O-O {[%clk 0:02:58]}  Nf6 {[%clk 0:02:51]} 7. Re1 {[%clk 0:02:57]}  g6 {[%clk 0:02:51]} 8. d4 {[%clk 0:02:57]}  Bg7 {[%clk 0:02:51]} 9. h3 {[%clk 0:02:56]}  O-O {[%clk 0:02:52]} 10. Nbd2 {[%clk 0:02:52]}  exd4 {[%clk 0:02:51]} 11. cxd4 {[%clk 0:02:52]}  Nb4 {[%clk 0:02:52]} 12. Bxd7 {[%clk 0:02:49]}  Qxd7 {[%clk 0:02:53]} 13. Nf1 {[%clk 0:02:45]}  Rae8 {[%clk 0:02:51]} 14. a3 {[%clk 0:02:42]}  Nc6 {[%clk 0:02:49]} 15. Ng3 {[%clk 0:02:40]}  d5 {[%clk 0:02:33]} 16. e5 {[%clk 0:02:36]}  Ne4 {[%clk 0:02:33]} 17. Bf4 {[%clk 0:02:23]}  f5 {[%clk 0:02:28]} 18. exf6 {[%clk 0:01:49]}  Bxf6 {[%clk 0:01:54]} 19. Bh6 {[%clk 0:00:55]}  Rf7 {[%clk 0:01:44]} 20. Qd3 {[%clk 0:00:36]}  Nxg3 {[%clk 0:01:43]} 21. fxg3 {[%clk 0:00:36]}  Rfe7 {[%clk 0:01:31]} 22. Rxe7 {[%clk 0:00:33]}  Rxe7 {[%clk 0:01:20]} 23. Rd1 {[%clk 0:00:33]}  Re4 {[%clk 0:01:16]} 24. Be3 {[%clk 0:00:30]}  Qe6 {[%clk 0:01:14]} 25. Bf2 {[%clk 0:00:30]}  Kg7 {[%clk 0:01:12]} 26. Qb3 {[%clk 0:00:29]}  Na5 {[%clk 0:01:07]} 27. Qc3 {[%clk 0:00:27]}  Nc6 {[%clk 0:01:03]} 28. Qb3 {[%clk 0:00:25]}  Nd8 {[%clk 0:00:34]} 29. Qc3 {[%clk 0:00:24]}  c6 {[%clk 0:00:34]} 30. Qb3 {[%clk 0:00:17]}  Qe7 {[%clk 0:00:34]} 31. Qb6 {[%clk 0:00:13]}  Nf7 {[%clk 0:00:34]} 32. Qb3 {[%clk 0:00:11]}  Re2 {[%clk 0:00:34]} 33. Qc3 {[%clk 0:00:10]}  Qe4 {[%clk 0:00:31]} 34. Re1 {[%clk 0:00:09]}  Rxe1+ {[%clk 0:00:26]} 35. Qxe1 {[%clk 0:00:10]}  Qxe1+ {[%clk 0:00:20]} 36. Nxe1 {[%clk 0:00:10]}  Nd6 {[%clk 0:00:21]} 37. Nf3 {[%clk 0:00:08]}  h5 {[%clk 0:00:21]} 38. Nd2 {[%clk 0:00:07]}  Kf7 {[%clk 0:00:18]} 39. Kf1 {[%clk 0:00:07]}  Ke6 {[%clk 0:00:18]} 40. Ke2 {[%clk 0:00:07]}  Bg5 {[%clk 0:00:17]} 41. Nf3 {[%clk 0:00:05]}  Bc1 {[%clk 0:00:14]} 42. b3 {[%clk 0:00:05]}  Bxa3 {[%clk 0:00:13]} 43. Kd3 {[%clk 0:00:06]}  Nf7 {[%clk 0:00:13]} 44. Be3 {[%clk 0:00:05]}  Bd6 {[%clk 0:00:14]} 45. Nh4 {[%clk 0:00:05]}  Kf6 {[%clk 0:00:13]} 46. Bf2 {[%clk 0:00:04]}  a5 {[%clk 0:00:13]} 47. Nf3 {[%clk 0:00:04]}  Nh6 {[%clk 0:00:09]} 48. Ne1 {[%clk 0:00:04]}  Nf5 {[%clk 0:00:09]} 49. g4 {[%clk 0:00:03]}  hxg4 {[%clk 0:00:10]} 50. hxg4 {[%clk 0:00:04]}  Nh6 {[%clk 0:00:11]} 51. Bh4+ {[%clk 0:00:04]}  g5 {[%clk 0:00:12]} 52. Bf2 {[%clk 0:00:03]}  Nxg4 {[%clk 0:00:12]} 53. Bg1 {[%clk 0:00:04]}  Kf5 {[%clk 0:00:13]} 54. Nf3 {[%clk 0:00:05]}  Nf6 {[%clk 0:00:13]} 55. Bf2 {[%clk 0:00:05]}  Ne4 {[%clk 0:00:13]} 56. Be1 {[%clk 0:00:05]}  b6 {[%clk 0:00:13]} 57. Ng1 {[%clk 0:00:04]}  g4 {[%clk 0:00:13]} 58. Ne2 {[%clk 0:00:04]}  Bb4 {[%clk 0:00:13]} 59. Bg3 {[%clk 0:00:03]}  Nxg3 {[%clk 0:00:13]} 60. Nxg3+ {[%clk 0:00:04]}  Kg5 {[%clk 0:00:12]} 61. Ne2 {[%clk 0:00:04]}  Bd6 {[%clk 0:00:13]} 62. Nc3 {[%clk 0:00:04]}  b5 {[%clk 0:00:13]} 63. Ne2 {[%clk 0:00:03]}  Kf5 {[%clk 0:00:13]} 64. Nc3 {[%clk 0:00:03]}  Bb4 {[%clk 0:00:13]} 65. Nd1 {[%clk 0:00:04]}  Kf4 {[%clk 0:00:13]} 66. Ne3 {[%clk 0:00:04]}  Be7 {[%clk 0:00:12]} 67. Ke2 {[%clk 0:00:04]}  Bf6 {[%clk 0:00:10]} 68. Kd3 {[%clk 0:00:04]}  Kg3 {[%clk 0:00:10]} 69. Ke2 {[%clk 0:00:01]}  a4 {[%clk 0:00:09]} 70. bxa4 {[%clk 0:00:01]}  bxa4 {[%clk 0:00:10]} 71. Kd3 {[%clk 0:00:02]}  a3 {[%clk 0:00:09]} 72. Nc2 {[%clk 0:00:02]}  a2 {[%clk 0:00:09]} 73. Kc3 {[%clk 0:00:02]}  Kxg2 {[%clk 0:00:10]} 74. Kb2 {[%clk 0:00:02]}  Kf2 {[%clk 0:00:10]} 0-1

[Event "January 9 Late 2024"]
[Site "https://www.chess.com"]
[Date "2024.01.09"]
[Round "1"]
[White "Sargsyan, Shant"]
[Black "Eke, Salih"]
[Result "1-0"]
[Board "44"]
[TimeControl "180+1"]
[WhiteFideId "13306766"]
[BlackFideId "6397573"]
[WhiteElo "2940"]
[BlackElo "2510"]
[WhiteTeam "ARM"]
[BlackTeam "TUR"]
[WhiteClock "0:00:19"]
[BlackClock "0:00:00"]

1. g3 {[%clk 0:03:00]}  d5 {[%clk 0:03:00]} 2. Nf3 {[%clk 0:03:01]}  Nf6 {[%clk 0:03:00]} 3. Bg2 {[%clk 0:03:01]}  g6 {[%clk 0:03:01]} 4. O-O {[%clk 0:03:01]}  Bg7 {[%clk 0:03:01]} 5. b3 {[%clk 0:03:01]}  O-O {[%clk 0:03:02]} 6. c4 {[%clk 0:03:00]}  c5 {[%clk 0:03:00]} 7. Bb2 {[%clk 0:02:59]}  d4 {[%clk 0:03:00]} 8. Ne5 {[%clk 0:02:58]}  Nbd7 {[%clk 0:02:59]} 9. Nd3 {[%clk 0:02:58]}  e5 {[%clk 0:02:58]} 10. e4 {[%clk 0:02:58]}  b6 {[%clk 0:02:57]} 11. Re1 {[%clk 0:02:55]}  Bb7 {[%clk 0:02:57]} 12. b4 {[%clk 0:02:53]}  Ne8 {[%clk 0:02:53]} 13. bxc5 {[%clk 0:02:47]}  Nxc5 {[%clk 0:02:53]} 14. Nxc5 {[%clk 0:02:41]}  bxc5 {[%clk 0:02:54]} 15. d3 {[%clk 0:02:41]}  Nd6 {[%clk 0:02:53]} 16. Nd2 {[%clk 0:02:42]}  f5 {[%clk 0:02:48]} 17. Ba3 {[%clk 0:02:35]}  Qc7 {[%clk 0:02:46]} 18. Rb1 {[%clk 0:02:33]}  Qa5 {[%clk 0:02:20]} 19. Qc1 {[%clk 0:02:21]}  fxe4 {[%clk 0:01:55]} 20. Nxe4 {[%clk 0:02:13]}  Bxe4 {[%clk 0:01:52]} 21. Bxe4 {[%clk 0:02:14]}  Nxe4 {[%clk 0:01:48]} 22. Rxe4 {[%clk 0:02:15]}  Rab8 {[%clk 0:01:48]} 23. Rxb8 {[%clk 0:02:10]}  Rxb8 {[%clk 0:01:49]} 24. Re2 {[%clk 0:01:35]}  Qc3 {[%clk 0:01:38]} 25. Qxc3 {[%clk 0:00:59]}  dxc3 {[%clk 0:01:38]} 26. Bxc5 {[%clk 0:00:58]}  Rb2 {[%clk 0:01:30]} 27. Kf1 {[%clk 0:00:57]}  c2 {[%clk 0:01:13]} 28. Be3 {[%clk 0:00:57]}  Rb1+ {[%clk 0:00:57]} 29. Re1 {[%clk 0:00:57]}  e4 {[%clk 0:00:57]} 30. dxe4 {[%clk 0:00:48]}  Bc3 {[%clk 0:00:55]} 31. Rc1 {[%clk 0:00:47]}  Bb2 {[%clk 0:00:55]} 32. Re1 {[%clk 0:00:47]}  Kf7 {[%clk 0:00:38]} 33. Ke2 {[%clk 0:00:43]}  Ke6 {[%clk 0:00:20]} 34. f4 {[%clk 0:00:44]}  Kd6 {[%clk 0:00:15]} 35. g4 {[%clk 0:00:44]}  c1=Q {[%clk 0:00:11]} 36. Bxc1 {[%clk 0:00:43]}  Rxc1 {[%clk 0:00:12]} 37. Rxc1 {[%clk 0:00:40]}  Bxc1 {[%clk 0:00:13]} 38. Kf3 {[%clk 0:00:41]}  Kc5 {[%clk 0:00:13]} 39. e5 {[%clk 0:00:40]}  Kd4 {[%clk 0:00:10]} 40. c5 {[%clk 0:00:39]}  Kxc5 {[%clk 0:00:08]} 41. Ke4 {[%clk 0:00:40]}  Kc6 {[%clk 0:00:08]} 42. f5 {[%clk 0:00:40]}  gxf5+ {[%clk 0:00:09]} 43. gxf5 {[%clk 0:00:41]}  Kd7 {[%clk 0:00:10]} 44. Kd5 {[%clk 0:00:36]}  Ke7 {[%clk 0:00:07]} 45. a4 {[%clk 0:00:36]}  Bf4 {[%clk 0:00:06]} 46. h3 {[%clk 0:00:36]}  h5 {[%clk 0:00:06]} 47. Ke4 {[%clk 0:00:36]}  Bg3 {[%clk 0:00:05]} 48. Kd5 {[%clk 0:00:36]}  a5 {[%clk 0:00:05]} 49. Ke4 {[%clk 0:00:35]}  Be1 {[%clk 0:00:05]} 50. Kd5 {[%clk 0:00:35]}  Bc3 {[%clk 0:00:06]} 51. Ke4 {[%clk 0:00:33]}  Bb2 {[%clk 0:00:06]} 52. Kf4 {[%clk 0:00:32]}  Kf7 {[%clk 0:00:04]} 53. Ke4 {[%clk 0:00:31]}  Bc3 {[%clk 0:00:03]} 54. Kd5 {[%clk 0:00:31]}  Be1 {[%clk 0:00:04]} 55. Kd6 {[%clk 0:00:31]}  Ke8 {[%clk 0:00:03]} 56. Ke6 {[%clk 0:00:27]}  Bc3 {[%clk 0:00:03]} 57. f6 {[%clk 0:00:26]}  Kf8 {[%clk 0:00:03]} 58. Kf5 {[%clk 0:00:26]}  Bb4 {[%clk 0:00:03]} 59. e6 {[%clk 0:00:26]}  h4 {[%clk 0:00:03]} 60. Kg5 {[%clk 0:00:25]}  Be1 {[%clk 0:00:03]} 61. Kg6 {[%clk 0:00:24]}  Ke8 {[%clk 0:00:04]} 62. f7+ {[%clk 0:00:17]}  Kf8 {[%clk 0:00:04]} 63. e7+ {[%clk 0:00:17]}  Kxe7 {[%clk 0:00:04]} 64. Kg7 {[%clk 0:00:18]}  Bc3+ {[%clk 0:00:00]} 65. Kg8 {[%clk 0:00:19]} 1-0